fUST/lending_fUST_20250819
["ID","MTS","AMOUNT","RATE_DAILY","PERIOD"]
[380119512,1755552653224,-480.0,0.00020273,2]
[380119513,1755552653233,-480.0,0.00020273,2]
[380119514,1755552653243,-464.9654335,0.00020273,2]
[380119515,1755552653253,-480.0,0.00020273,2]
[380119516,1755552653262,-480.0,0.00020273,2]
[380119517,1755552653272,-480.0,0.00020273,2]
[380119518,1755552653281,-440.0,0.00020273,2]
[380119519,1755552653291,-480.0,0.00020273,2]
[380119520,1755552653300,-518.92380147,0.00020273,2]
[380119521,1755552653309,-480.0,0.00020273,2]
[380119522,1755552653318,-960.07,0.00020273,2]
[380119523,1755552653327,-589.13892873,0.00020273,2]
[380119524,1755552653336,-320.33,0.00020273,2]
[380119525,1755552653345,-480.0,0.00020273,2]
[380119526,1755552653355,-480.0,0.00020273,2]
[380119527,1755552653365,-480.0,0.00020273,2]
[380119528,1755552653375,-480.0,0.00020273,2]
[380119529,1755552653385,-480.0,0.00020273,2]
[380119530,1755552653396,-480.0,0.00020273,2]
[380119531,1755552653410,-480.0,0.00020273,2]
[380119532,1755552653421,-480.0,0.00020273,2]
[380119533,1755552653505,-480.0,0.00020273,2]
[380119534,1755552653516,-480.0,0.00020273,2]
[380119535,1755552653527,-480.0,0.00020273,2]
[380119536,1755552653537,-480.0,0.00020273,2]
[380119537,1755552653547,-480.0,0.00020273,2]
[380119538,1755552653556,-480.0,0.00020273,2]
[380119539,1755552653565,-480.0,0.00020273,2]
[380119540,1755552653575,-480.0,0.00020273,2]
[380119541,1755552653584,-480.0,0.00020273,2]
[380119542,1755552653593,-480.0,0.00020273,2]
[380119543,1755552653602,-480.0,0.00020273,2]
[380119544,1755552653611,-480.0,0.00020273,2]
[380119545,1755552653621,-480.0,0.00020273,2]
[380119546,1755552653631,-480.0,0.00020273,2]
[380119547,1755552653640,-480.0,0.00020273,2]
[380119548,1755552653649,-198.68,0.00020273,2]
[380119549,1755552653658,-480.0,0.00020273,2]
[380119550,1755552653667,-480.0,0.00020273,2]
[380119551,1755552653677,-480.0,0.00020273,2]
[380119552,1755552653686,-480.0,0.00020273,2]
[380119553,1755552653695,-480.0,0.00020273,2]
[380119554,1755552653704,-480.0,0.00020273,2]
[380119555,1755552653714,-480.0,0.00020273,2]
[380119556,1755552653723,-480.0,0.00020273,2]
[380119557,1755552653732,-480.0,0.00020273,2]
[380119558,1755552653740,-480.0,0.00020273,2]
[380119559,1755552653750,-521.33,0.00020273,2]
[380119560,1755552653759,-480.0,0.00020273,2]
[380119561,1755552653770,-480.0,0.00020273,2]
[380119562,1755552653779,-480.0,0.00020273,2]
[380119563,1755552653788,-480.0,0.00020273,2]
[380119564,1755552653798,-480.0,0.00020273,2]
[380119565,1755552653807,-480.0,0.00020273,2]
[380119566,1755552653816,-480.0,0.00020273,2]
[380119567,1755552653826,-480.0,0.00020273,2]
[380119568,1755552653835,-480.0,0.00020273,2]
[380119569,1755552653844,-480.0,0.00020273,2]
[380119570,1755552653854,-480.0,0.00020273,2]
[380119571,1755552653864,-480.0,0.00020273,2]
[380119572,1755552653873,-771.24,0.00020273,2]
[380119573,1755552653882,-386.94,0.00020273,2]
[380119574,1755552653893,-480.0,0.00020273,2]
[380119575,1755552653905,-480.0,0.00020273,2]
[380119576,1755552653914,-480.0,0.00020273,2]
[380119577,1755552653923,-480.0,0.00020273,2]
[380119578,1755552653933,-480.0,0.00020273,2]
[380119579,1755552653943,-480.0,0.00020273,2]
[380119580,1755552653953,-480.0,0.00020273,2]
[380119581,1755552653962,-500.0,0.00020274,2]
[380119582,1755552653972,-151.0,0.00020274,2]
[380119583,1755552653981,-1138.88956657,0.00020316,2]
[380119584,1755552653990,-480.0,0.00020547,2]
[380119585,1755552654000,-546.46,0.00020547,2]
[380119586,1755552654009,-480.0,0.00020547,2]
[380119587,1755552654018,-480.0,0.00020547,2]
[380119588,1755552654027,-480.0,0.00020547,2]
[380119589,1755552654039,-460.0,0.00020547,2]
[380119590,1755552654047,-480.0,0.00020547,2]
[380119591,1755552654057,-480.0,0.00020547,2]
[380119592,1755552654066,-480.0,0.00020547,2]
[380119593,1755552654075,-187.91,0.00020547,2]
[380119594,1755552654084,-218.44,0.00020547,2]
[380119595,1755552654094,-480.0,0.00020547,2]
[380119596,1755552654103,-480.0,0.00020547,2]
[380119597,1755552654112,-480.0,0.00020547,2]
[380119598,1755552654121,-480.0,0.00020547,2]
[380119599,1755552654131,-480.0,0.00020547,2]
[380119600,1755552654140,-173.28,0.00020547,2]
[380119601,1755552654150,-609.48,0.00020547,2]
[380119602,1755552654159,-480.0,0.00020547,2]
[380119603,1755552654168,-480.0,0.00020547,2]
[380119604,1755552654178,-480.0,0.00020547,2]
[380119605,1755552654187,-480.0,0.00020547,2]
[380119606,1755552654196,-480.0,0.00020547,2]
[380119607,1755552654206,-480.0,0.00020547,2]
[380119608,1755552654215,-511.45,0.00020547,2]
[380119609,1755552654223,-480.0,0.00020547,2]
[380119610,1755552654232,-960.07,0.00020547,2]
[380119611,1755552654242,-480.0,0.00020547,2]
[380119612,1755552654251,-480.0,0.00020547,2]
[380119613,1755552654261,-480.0,0.00020547,2]
[380119614,1755552654270,-480.0,0.00020547,2]
[380119615,1755552654279,-480.0,0.00020547,2]
[380119616,1755552654287,-561.86,0.00020547,2]
[380119617,1755552654296,-480.0,0.00020547,2]
[380119618,1755552654306,-430.17,0.00020547,2]
[380119619,1755552654315,-480.0,0.00020547,2]
[380119620,1755552654325,-480.0,0.00020547,2]
[380119621,1755552654334,-480.0,0.00020547,2]
[380119622,1755552654343,-480.0,0.00020547,2]
[380119623,1755552654352,-480.0,0.00020547,2]
[380119624,1755552654361,-201.95,0.00020547,2]
[380119625,1755552654370,-480.0,0.00020547,2]
[380119626,1755552654379,-151.0,0.00020547,2]
[380119627,1755552654388,-480.0,0.00020547,2]
[380119628,1755552654397,-480.0,0.00020547,2]
[380119629,1755552654411,-151.0,0.00020547,2]
[380119630,1755552654420,-295.792364,0.00020547,2]
[380119631,1755552654429,-480.0,0.00020547,2]
[380119632,1755552654438,-295.792364,0.00020547,2]
[380119633,1755552654448,-151.0,0.00020547,2]
[380119634,1755552654458,-480.0,0.00020547,2]
[380119635,1755552654467,-480.0,0.00020547,2]
[380119636,1755552654477,-480.0,0.00020547,2]
[380119637,1755552654487,-480.0,0.00020547,2]
[380119638,1755552654496,-480.0,0.00020547,2]
[380119639,1755552654505,-315.157053,0.00020547,2]
[380119640,1755552654514,-249.571556,0.00020547,2]
[380119641,1755552654523,-249.571556,0.00020547,2]
[380119642,1755552654532,-192.91481767,0.00020547,2]
[380119643,1755552654541,-480.0,0.00020547,2]
[380119644,1755552654550,-1091.912522,0.00020547,2]
[380119645,1755552654559,-151.0,0.00020547,2]
[380119646,1755552654568,-1091.912522,0.00020547,2]
[380119647,1755552654578,-315.157053,0.00020547,2]
[380119648,1755552654586,-329.74,0.00020547,2]
[380119649,1755552654595,-530.07,0.00020547,2]
[380119650,1755552654604,-480.0,0.00020547,2]
[380119651,1755552654613,-480.0,0.00020547,2]
[380119652,1755552654623,-480.0,0.00020547,2]
[380119653,1755552654632,-480.0,0.00020547,2]
[380119654,1755552654641,-151.0,0.00020547,2]
[380119655,1755552654650,-151.0,0.00020547,2]
[380119656,1755552654659,-245.650857,0.00020547,2]
[380119657,1755552654668,-299.168482,0.00020547,2]
[380119658,1755552654677,-472.37643602,0.00020547,2]
[380119659,1755552654687,-315.3,0.00020547,2]
[380119660,1755552654696,-480.0,0.00020547,2]
[380119661,1755552654705,-480.0,0.00020547,2]
[380119662,1755552654714,-771.24,0.00020547,2]
[380119663,1755552654724,-480.0,0.00020547,2]
[380119664,1755552654733,-480.0,0.00020547,2]
[380119665,1755552654742,-480.0,0.00020547,2]
[380119666,1755552654751,-480.0,0.00020547,2]
[380119667,1755552654760,-461.64,0.00020547,2]
[380119668,1755552654770,-151.0,0.00020547,2]
[380119669,1755552654780,-500.0,0.00020548,2]
[380119670,1755552654791,-245.0,0.00020548,2]
[380119671,1755552654800,-215.75323784,0.00020622,2]
[380119672,1755552654809,-232.18122251,0.00020622,2]
[380119673,1755552654819,-375.82681177,0.00020622,2]
[380119674,1755552654828,-216.85420361,0.00020622,2]
[380119675,1755552654837,-160.0,0.00020623,2]
[380119676,1755552654847,-843.81736472,0.00020623,2]
[380119677,1755552654856,-151.0,0.00020644,2]
[380119678,1755552654865,-151.0,0.00020644,2]
[380119679,1755552654875,-151.0,0.00020644,2]
[380119680,1755552654884,-151.0,0.00020644,2]
[380119681,1755552654894,-420.0,0.00020697,2]
[380119682,1755552654905,-1138.88956657,0.00020731,2]
[380119683,1755552654915,-480.0,0.00020821,2]
[380119684,1755552654926,-480.0,0.00020821,2]
[380119685,1755552654937,-558.94,0.00020821,2]
[380119686,1755552654947,-460.0,0.00020821,2]
[380119687,1755552654956,-480.0,0.00020821,2]
[380119688,1755552654965,-517.75,0.00020821,2]
[380119689,1755552654975,-480.0,0.00020821,2]
[380119690,1755552654984,-480.0,0.00020821,2]
[380119691,1755552654994,-480.0,0.00020821,2]
[380119692,1755552655004,-516.26692774,0.00020821,2]
[380119693,1755552655014,-480.0,0.00020821,2]
[380119694,1755552655023,-480.0,0.00020821,2]
[380119695,1755552655033,-480.0,0.00020821,2]
[380119696,1755552655042,-480.0,0.00020821,2]
[380119697,1755552655052,-151.0,0.00020821,2]
[380119698,1755552655136,-186.461676,0.00020821,2]
[380119699,1755552655147,-960.07,0.00020821,2]
[380119700,1755552655157,-186.461676,0.00020821,2]
[380119701,1755552655166,-480.0,0.00020821,2]
[380119702,1755552655176,-480.0,0.00020821,2]
[380119703,1755552655185,-151.0,0.00020821,2]
[380119704,1755552655195,-480.0,0.00020821,2]
[380119705,1755552655204,-272.203154,0.00020821,2]
[380119706,1755552655213,-272.203154,0.00020821,2]
[380119707,1755552655223,-480.0,0.00020821,2]
[380119708,1755552655233,-151.0,0.00020821,2]
[380119709,1755552655243,-480.0,0.00020821,2]
[380119710,1755552655252,-178.31849,0.00020821,2]
[380119711,1755552655262,-178.31849,0.00020821,2]
[380119712,1755552655271,-480.0,0.00020821,2]
[380119713,1755552655281,-480.0,0.00020821,2]
[380119714,1755552655291,-480.0,0.00020821,2]
[380119715,1755552655300,-480.0,0.00020821,2]
[380119716,1755552655310,-151.0,0.00020821,2]
[380119717,1755552655319,-480.0,0.00020821,2]
[380119718,1755552655329,-480.0,0.00020821,2]
[380119719,1755552655338,-480.0,0.00020821,2]
[380119720,1755552655347,-480.0,0.00020821,2]
[380119721,1755552655357,-480.0,0.00020821,2]
[380119722,1755552655366,-480.0,0.00020821,2]
[380119723,1755552655376,-480.0,0.00020821,2]
[380119724,1755552655385,-480.0,0.00020821,2]
[380119725,1755552655395,-480.0,0.00020821,2]
[380119726,1755552655408,-480.0,0.00020821,2]
[380119727,1755552655419,-480.0,0.00020821,2]
[380119728,1755552655429,-235.59721851,0.00020821,2]
[380119729,1755552655438,-515.77,0.00020821,2]
[380119730,1755552655448,-566.08,0.00020821,2]
[380119731,1755552655459,-480.0,0.00020821,2]
[380119732,1755552655468,-480.0,0.00020821,2]
[380119733,1755552655479,-771.24,0.00020821,2]
[380119734,1755552655489,-480.0,0.00020821,2]
[380119735,1755552655500,-480.0,0.00020821,2]
[380119736,1755552655510,-211.69655337,0.00020821,2]
[380119737,1755552655519,-480.0,0.00020821,2]
[380119738,1755552655529,-500.0,0.00020822,2]
[380119739,1755552655538,-179.83814567,0.0002093,2]
[380119740,1755552655548,-480.0,0.00021095,2]
[380119741,1755552655558,-480.0,0.00021095,2]
[380119742,1755552655568,-480.0,0.00021095,2]
[380119743,1755552655577,-480.0,0.00021095,2]
[380119744,1755552655587,-480.0,0.00021095,2]
[380119745,1755552655597,-480.0,0.00021095,2]
[380119746,1755552655607,-480.0,0.00021095,2]
[380119747,1755552655616,-480.0,0.00021095,2]
[380119748,1755552655626,-480.0,0.00021095,2]
[380119749,1755552655635,-480.0,0.00021095,2]
[380119750,1755552655644,-960.07,0.00021095,2]
[380119751,1755552655653,-480.0,0.00021095,2]
[380119752,1755552655663,-480.0,0.00021095,2]
[380119753,1755552655672,-545.8,0.00021095,2]
[380119754,1755552655682,-480.0,0.00021095,2]
[380119755,1755552655691,-480.0,0.00021095,2]
[380119756,1755552655701,-480.0,0.00021095,2]
[380119757,1755552655710,-428.12,0.00021095,2]
[380119758,1755552655720,-480.0,0.00021095,2]
[380119759,1755552655731,-480.0,0.00021095,2]
[380119760,1755552655740,-480.0,0.00021095,2]
[380119761,1755552655749,-480.0,0.00021095,2]
[380119762,1755552655759,-480.0,0.00021095,2]
[380119763,1755552655768,-480.0,0.00021095,2]
[380119764,1755552655779,-480.0,0.00021095,2]
[380119765,1755552655788,-543.79,0.00021095,2]
[380119766,1755552655798,-480.0,0.00021095,2]
[380119767,1755552655807,-480.0,0.00021095,2]
[380119768,1755552655816,-480.0,0.00021095,2]
[380119769,1755552655825,-517.49,0.00021095,2]
[380119770,1755552655835,-480.0,0.00021095,2]
[380119771,1755552655844,-771.24,0.00021095,2]
[380119772,1755552655854,-480.0,0.00021095,2]
[380119773,1755552655863,-462.53,0.00021095,2]
[380119774,1755552655873,-480.0,0.00021095,2]
[380119775,1755552655883,-210.0,0.00021096,2]
[380119776,1755552655892,-1138.88956657,0.00021147,2]
[380119777,1755552655902,-480.0,0.00021369,2]
[380119778,1755552655911,-480.0,0.00021369,2]
[380119779,1755552655921,-308.30743167,0.00021369,2]
[380119780,1755552655933,-480.0,0.00021369,2]
[380119781,1755552655942,-480.0,0.00021369,2]
[380119782,1755552655952,-151.0,0.00021369,2]
[380119783,1755552655961,-214.04,0.00021369,2]
[380119784,1755552655970,-151.0,0.00021369,2]
[380119785,1755552655980,-480.0,0.00021369,2]
[380119786,1755552655990,-151.0,0.00021369,2]
[380119787,1755552656003,-151.0,0.00021369,2]
[380119788,1755552656012,-151.0,0.00021369,2]
[380119789,1755552656022,-987.727299,0.00021369,2]
[380119790,1755552656031,-987.727299,0.00021369,2]
[380119791,1755552656041,-480.0,0.00021369,2]
[380119792,1755552656050,-151.0,0.00021369,2]
[380119793,1755552656060,-960.07,0.00021369,2]
[380119794,1755552656069,-480.0,0.00021369,2]
[380119795,1755552656079,-188.89,0.00021369,2]
[380119796,1755552656088,-480.0,0.00021369,2]
[380119797,1755552656098,-480.0,0.00021369,2]
[380119798,1755552656107,-480.0,0.00021369,2]
[380119799,1755552656117,-480.0,0.00021369,2]
[380119800,1755552656132,-480.0,0.00021369,2]
[380119801,1755552656143,-480.0,0.00021369,2]
[380119802,1755552656157,-480.0,0.00021369,2]
[380119803,1755552656168,-480.0,0.00021369,2]
[380119804,1755552656178,-480.0,0.00021369,2]
[380119805,1755552656187,-480.0,0.00021369,2]
[380119806,1755552656197,-209.18,0.00021369,2]
[380119807,1755552656207,-480.0,0.00021369,2]
[380119808,1755552656216,-480.0,0.00021369,2]
[380119809,1755552656228,-480.0,0.00021369,2]
[380119810,1755552656237,-771.24,0.00021369,2]
[380119811,1755552656247,-480.0,0.00021369,2]
[380119812,1755552656257,-355.27201316,0.00021369,2]
[380119813,1755552656271,-720.0,0.00021517,20]
[380119814,1755552656283,-1138.88956657,0.00021562,2]
[380119815,1755552656295,-480.0,0.00021643,2]
[380119816,1755552656306,-480.0,0.00021643,2]
[380119817,1755552656316,-575.36,0.00021643,2]
[380119818,1755552656327,-480.0,0.00021643,2]
[380119819,1755552656337,-480.0,0.00021643,2]
[380119820,1755552656347,-480.0,0.00021643,2]
[380119821,1755552656357,-960.07,0.00021643,2]
[380119822,1755552656366,-480.0,0.00021643,2]
[380119823,1755552656376,-480.0,0.00021643,2]
[380119824,1755552656385,-480.0,0.00021643,2]
[380119825,1755552656394,-284.73,0.00021643,2]
[380119826,1755552656406,-480.0,0.00021643,2]
[380119827,1755552656415,-480.0,0.00021643,2]
[380119828,1755552656425,-480.0,0.00021643,2]
[380119829,1755552656434,-480.0,0.00021643,2]
[380119830,1755552656444,-480.0,0.00021643,2]
[380119831,1755552656454,-480.0,0.00021643,2]
[380119832,1755552656463,-480.0,0.00021643,2]
[380119833,1755552656473,-166.43,0.00021643,2]
[380119834,1755552656483,-480.0,0.00021643,2]
[380119835,1755552656493,-480.0,0.00021643,2]
[380119836,1755552656502,-771.24,0.00021643,2]
[380119837,1755552656512,-480.0,0.00021643,2]
[380119838,1755552656521,-480.0,0.00021917,2]
[380119839,1755552656530,-480.0,0.00021917,2]
[380119840,1755552656541,-188.04878815,0.00021917,2]
[380119841,1755552656550,-480.0,0.00021917,2]
[380119842,1755552656559,-480.0,0.00021917,2]
[380119843,1755552656569,-960.07,0.00021917,2]
[380119844,1755552656578,-355.47,0.00021917,2]
[380119845,1755552656588,-446.79922926,0.00021917,2]
[380119846,1755552656793,-33.20077074,0.00021917,2]
[380119847,1755552656803,-480.0,0.00021917,2]
[380119848,1755552656813,-480.0,0.00021917,2]
[380119849,1755552656823,-480.0,0.00021917,2]
[380119850,1755552656832,-104.13832359,0.00021917,2]
[380119851,1755552656844,-375.86167641,0.00021917,2]
[380119852,1755552656853,-480.0,0.00021917,2]
[380119853,1755552656863,-480.0,0.00021917,2]
[380119854,1755552656874,-480.0,0.00021917,2]
[380119855,1755552656883,-344.41,0.00021917,2]
[380119856,1755552656893,-480.0,0.00021917,2]
[380119857,1755552656903,-230.6,0.00021917,2]
[380119858,1755552656912,-771.24,0.00021917,2]
[380119859,1755552656922,-480.0,0.00021917,2]
[380119860,1755552656931,-1138.88956657,0.00021978,2]
[380119861,1755552656941,-3634.27,0.00022,7]
[380119862,1755552656951,-904.85,0.00022,7]
[380119863,1755552656960,-350.28,0.00022,7]
[380119864,1755552656969,-5966.66,0.00022,2]
[380119865,1755552656979,-151.0,0.00022,7]
[380119866,1755552656988,-151.0,0.00022,7]
[380119867,1755552656997,-151.0,0.00022,7]
[380119868,1755552657007,-151.0,0.00022,7]
[380119869,1755552657016,-150.0,0.00022002,2]
[380119870,1755552657026,-192.55999987,0.000221,10]
[380119871,1755552657035,-480.0,0.00022191,2]
[380119872,1755552657044,-267.35,0.00022191,2]
[380119873,1755552657054,-480.0,0.00022191,2]
[380119874,1755552657063,-267.9,0.00022191,2]
[380119875,1755552657075,-960.07,0.00022191,2]
[380119876,1755552657085,-373.63,0.00022191,2]
[380119877,1755552657095,-441.87,0.00022191,2]
[380119878,1755552657104,-480.0,0.00022191,2]
[380119879,1755552657114,-249.17,0.00022191,2]
[380119880,1755552657124,-480.0,0.00022191,2]
[380119881,1755552657135,-480.0,0.00022191,2]
[380119882,1755552657147,-480.0,0.00022191,2]
[380119883,1755552657156,-480.0,0.00022191,2]
[380119884,1755552657165,-480.0,0.00022191,2]
[380119885,1755552657175,-771.24,0.00022191,2]
[380119886,1755552657184,-480.0,0.00022191,2]
[380119887,1755552657193,-231.642,0.00022196,2]
[380119888,1755552657203,-7850.0,0.000222,30]
[380119889,1755552657212,-1138.88956657,0.00022394,2]
[380119890,1755552657221,-3273.12776907,0.00022395,2]
[380119891,1755552657231,-480.0,0.00022465,2]
[380119892,1755552657240,-160.488709,0.00022465,7]
[380119893,1755552657251,-160.488709,0.00022465,7]
[380119894,1755552657260,-157.688766,0.00022465,7]
[380119895,1755552657270,-151.845301,0.00022465,7]
[380119896,1755552657279,-157.688766,0.00022465,7]
[380119897,1755552657288,-192.105793,0.00022465,7]
[380119898,1755552657297,-192.105793,0.00022465,7]
[380119899,1755552657307,-480.0,0.00022465,2]
[380119900,1755552657318,-960.07,0.00022465,2]
[380119901,1755552657327,-480.0,0.00022465,2]
[380119902,1755552657336,-480.0,0.00022465,2]
[380119903,1755552657345,-480.0,0.00022465,2]
[380119904,1755552657354,-480.0,0.00022465,2]
[380119905,1755552657364,-289.47226692,0.00022465,2]
[380119906,1755552657373,-480.0,0.00022465,2]
[380119907,1755552657382,-771.24,0.00022465,2]
[380119908,1755552657393,-480.0,0.00022465,2]
[380119909,1755552657403,-587.0,0.0002256,2]
[380119910,1755552657413,-480.0,0.00022739,2]
[380119911,1755552657424,-480.0,0.00022739,2]
[380119912,1755552657434,-960.07,0.00022739,2]
[380119913,1755552657443,-480.0,0.00022739,2]
[380119914,1755552657453,-480.0,0.00022739,2]
[380119915,1755552657463,-223.64,0.00022739,2]
[380119916,1755552657472,-480.0,0.00022739,2]
[380119917,1755552657484,-480.0,0.00022739,2]
[380119918,1755552657494,-771.24,0.00022739,2]
[380119919,1755552657504,-480.0,0.00022739,2]
[380119920,1755552657513,-1138.88956657,0.00022809,2]
[380119921,1755552657522,-480.0,0.00023013,2]
[380119922,1755552657531,-480.0,0.00023013,2]
[380119923,1755552657541,-960.07,0.00023013,2]
[380119924,1755552657550,-480.0,0.00023013,2]
[380119925,1755552657559,-480.0,0.00023013,2]
[380119926,1755552657569,-232.06,0.00023013,2]
[380119927,1755552657578,-480.0,0.00023013,2]
[380119928,1755552657587,-771.24,0.00023013,2]
[380119929,1755552657597,-255.71,0.00023013,2]
[380119930,1755552657607,-1138.88956657,0.00023225,2]
[380119931,1755552657617,-406.82648597,0.00023287,2]
[380119932,1755552657626,-240.91764025,0.00023287,2]
[380119933,1755552657650,-51.09235975,0.00023287,2]
[380119934,1755552657660,-960.07,0.00023287,2]
[380119935,1755552657669,-480.0,0.00023287,2]
[380119936,1755552657679,-480.0,0.00023287,2]
[380119937,1755552657689,-480.0,0.00023287,2]
[380119938,1755552657698,-771.24,0.00023287,2]
[380119939,1755552657709,-960.07,0.00023561,2]
[380119940,1755552657718,-480.0,0.00023561,2]
[380119941,1755552657729,-480.0,0.00023561,2]
[380119942,1755552657738,-480.0,0.00023561,2]
[380119943,1755552657748,-771.24,0.00023561,2]
[380119944,1755552657757,-1138.88956657,0.00023641,2]
[380119945,1755552657766,-864.0,0.00023668,20]
[380119946,1755552657776,-5000.0,0.00023727,2]
[380119947,1755552657785,-960.07,0.00023835,2]
[380119948,1755552657794,-480.0,0.00023835,2]
[380119949,1755552657804,-480.0,0.00023835,2]
[380119950,1755552657814,-480.0,0.00023835,2]
[380119951,1755552657824,-771.24,0.00023835,2]
[380119952,1755552657834,-1114.56943097,0.000239,2]
[380119953,1755552657844,-319.28,0.00024,14]
[380119954,1755552657854,-176.08,0.00024002,2]
[380119955,1755552657864,-1138.88956657,0.00024056,2]
[380119956,1755552657873,-600.0,0.00024082,2]
[380119957,1755552657883,-960.07,0.00024109,2]
[380119958,1755552657893,-480.0,0.00024109,2]
[380119959,1755552657903,-480.0,0.00024109,2]
[380119960,1755552657914,-480.0,0.00024109,2]
[380119961,1755552657931,-771.24,0.00024109,2]
[380119962,1755552658012,-408.0,0.00024254,2]
[380119963,1755552658022,-153.0,0.00024261,2]
[380119964,1755552658031,-155.78,0.00024306,7]
[380119965,1755552658041,-960.07,0.00024383,2]
[380119966,1755552658050,-480.0,0.00024383,2]
[380119967,1755552658059,-480.0,0.00024383,2]
[380119968,1755552658069,-480.0,0.00024383,2]
[380119969,1755552658078,-771.24,0.00024383,2]
[380119970,1755552658087,-155.78,0.00024406,7]
[380119971,1755552658096,-232.18122251,0.00024406,7]
[380119972,1755552658105,-1138.88956657,0.00024472,2]
[380119973,1755552658115,-5966.66,0.000245,2]
[380119974,1755552658124,-155.78,0.00024506,7]
[380119975,1755552658133,-375.82681177,0.00024506,7]
[380119976,1755552658142,-216.85420361,0.00024506,7]
[380119977,1755552658151,-336.0,0.00024517,2]
[380119978,1755552658160,-823.0,0.00024591,2]
[380119979,1755552658171,-155.79,0.00024606,7]
[380119980,1755552658180,-960.07,0.00024657,2]
[380119981,1755552658190,-480.0,0.00024657,2]
[380119982,1755552658199,-480.0,0.00024657,2]
[380119983,1755552658208,-551.12,0.00024657,2]
[380119984,1755552658218,-771.24,0.00024657,2]
[380119985,1755552658228,-500.0,0.00024658,2]
[380119986,1755552658238,-428.542721,0.00024695,7]
[380119987,1755552658248,-428.542721,0.00024695,7]
[380119988,1755552658257,-151.0,0.00024695,7]
[380119989,1755552658266,-186.893047,0.00024695,7]
[380119990,1755552658275,-186.893047,0.00024695,7]
[380119991,1755552658285,-213.760316,0.00024695,7]
[380119992,1755552658294,-151.0,0.00024695,7]
[380119993,1755552658304,-168.0,0.00024877,2]
[380119994,1755552658313,-1138.88956657,0.00024887,2]
[380119995,1755552658323,-350.28,0.000249,7]
[380119996,1755552658332,-151.0,0.000249,7]
[380119997,1755552658342,-151.46434,0.000249,7]
[380119998,1755552658352,-151.456785,0.000249,7]
[380119999,1755552658362,-151.0,0.000249,7]
[380120000,1755552658371,-151.0,0.000249,7]
[380120001,1755552658382,-151.0,0.000249,7]
[380120002,1755552658392,-151.0,0.000249,7]
[380120003,1755552658402,-151.0,0.000249,7]
[380120004,1755552658414,-428.542721,0.000249,7]
[380120005,1755552658423,-428.542721,0.000249,7]
[380120006,1755552658433,-151.0,0.000249,7]
[380120007,1755552658442,-186.893047,0.000249,7]
[380120008,1755552658453,-186.893047,0.000249,7]
[380120009,1755552658462,-160.488709,0.000249,7]
[380120010,1755552658472,-160.488709,0.000249,7]
[380120011,1755552658484,-151.0,0.000249,7]